[Event "*** Titled Tuesday Blitz AM"]
[Site "Chess.com"]
[Date "2020.01.07"]
[Round "3"]
[White "talento10"]
[Black "VincentBlom"]
[Result "1/2-1/2"]
[WhiteElo "2250"]
[BlackElo "2555"]
[TimeControl "180+2"]
[EndTime "9:41:50 PST"]
[Termination "Game drawn by agreement"]

1. e4 {[%clk 0:02:59]} 1... c6 {[%clk 0:02:36.3]} 2. d4 {[%clk 0:02:59.2]} 2...
d5 {[%clk 0:02:37.3]} 3. e5 {[%clk 0:03:00.6]} 3... Bf5 {[%clk 0:02:38.1]} 4.
Nf3 {[%clk 0:03:00.9]} 4... e6 {[%clk 0:02:39]} 5. Be2 {[%clk 0:03:00.5]} 5...
h6 {[%clk 0:02:39]} 6. O-O {[%clk 0:03:01.7]} 6... Ne7 {[%clk 0:02:38.7]} 7. b3
{[%clk 0:03:02.3]} 7... Nc8 {[%clk 0:02:39.1]} 8. c4 {[%clk 0:03:02.3]} 8... Be7
{[%clk 0:02:40.8]} 9. Nc3 {[%clk 0:02:59.3]} 9... dxc4 {[%clk 0:02:41.6]} 10.
bxc4 {[%clk 0:02:59.3]} 10... O-O {[%clk 0:02:42.5]} 11. Qb3 {[%clk 0:02:43.5]}
11... Qb6 {[%clk 0:02:40.7]} 12. c5 {[%clk 0:02:44.9]} 12... Qxb3 {[%clk
0:02:41.1]} 13. axb3 {[%clk 0:02:46.8]} 13... b5 {[%clk 0:02:28.4]} 14. Nd1
{[%clk 0:02:23.9]} 14... a5 {[%clk 0:02:27.3]} 15. Bd2 {[%clk 0:02:24.6]} 15...
a4 {[%clk 0:02:26.1]} 16. bxa4 {[%clk 0:02:22.8]} 16... bxa4 {[%clk 0:02:25.9]}
17. Ne3 {[%clk 0:02:21.5]} 17... Bh7 {[%clk 0:02:24.7]} 18. Ra3 {[%clk
0:02:20.7]} 18... Rd8 {[%clk 0:02:22.5]} 19. Rfa1 {[%clk 0:02:20.1]} 19... Be4
{[%clk 0:02:15.7]} 20. Rxa4 {[%clk 0:02:20.8]} 20... Rxa4 {[%clk 0:02:16.6]} 21.
Rxa4 {[%clk 0:02:22.7]} 21... Nd7 {[%clk 0:02:17.1]} 22. Ra8 {[%clk 0:02:18.8]}
22... Kh7 {[%clk 0:02:13.7]} 23. Ne1 {[%clk 0:02:18.9]} 23... Nxe5 {[%clk
0:01:56.5]} 24. Bc3 {[%clk 0:02:16.7]} 24... Ng6 {[%clk 0:01:11.4]} 25. f3
{[%clk 0:01:10.5]} 25... Bd5 {[%clk 0:01:07.4]} 26. Ba6 {[%clk 0:01:11.2]} 26...
Nb6 {[%clk 0:00:51.9]} 27. Rxd8 {[%clk 0:01:13.1]} 27... Bxd8 {[%clk 0:00:52.7]}
28. cxb6 {[%clk 0:01:13.1]} 28... Bxb6 {[%clk 0:00:54.3]} 29. Kf2 {[%clk
0:01:09.6]} 29... Nf4 {[%clk 0:00:51.1]} 30. g3 {[%clk 0:01:09.8]} 30... Nh5
{[%clk 0:00:51]} 31. Nxd5 {[%clk 0:01:09.5]} 31... cxd5 {[%clk 0:00:51.1]} 32.
f4 {[%clk 0:01:08.5]} 32... Nf6 {[%clk 0:00:51.2]} 33. Bd3+ {[%clk 0:01:09]}
33... g6 {[%clk 0:00:51.5]} 34. Nf3 {[%clk 0:01:09.5]} 34... Ng4+ {[%clk
0:00:51.6]} 35. Ke2 {[%clk 0:01:06.6]} 35... Kg7 {[%clk 0:00:52.5]} 36. h3
{[%clk 0:01:07.3]} 36... Nf6 {[%clk 0:00:54]} 37. Bb2 {[%clk 0:00:54.6]} 37...
Nd7 {[%clk 0:00:52.6]} 38. Ne5 {[%clk 0:00:47.7]} 38... Nf6 {[%clk 0:00:52.5]}
39. Nc6 {[%clk 0:00:44.1]} 39... Nh5 {[%clk 0:00:52.8]} 40. Kf3 {[%clk
0:00:43.2]} 40... Nf6 {[%clk 0:00:54.3]} 41. Bc3 {[%clk 0:00:42.5]} 41... Bc7
{[%clk 0:00:53.3]} 42. Ne5 {[%clk 0:00:40.2]} 42... h5 {[%clk 0:00:53.4]} 43.
Bb4 {[%clk 0:00:39]} 43... Bb6 {[%clk 0:00:53.7]} 44. Bc5 {[%clk 0:00:40.3]}
44... Ba5 {[%clk 0:00:54.6]} 45. g4 {[%clk 0:00:39.1]} 45... hxg4+ {[%clk
0:00:55.5]} 46. hxg4 {[%clk 0:00:41]} 46... Bd2 {[%clk 0:00:51.6]} 47. Be7
{[%clk 0:00:39.4]} 47... Bc3 {[%clk 0:00:46.4]} 48. g5 {[%clk 0:00:33.2]} 48...
Nh5 {[%clk 0:00:47.4]} 49. Nc6 {[%clk 0:00:32.7]} 49... Bd2 {[%clk 0:00:45.1]}
50. Bd6 {[%clk 0:00:33.9]} 50... Kg8 {[%clk 0:00:40.5]} 51. Be5 {[%clk
0:00:34.5]} 51... Ng7 {[%clk 0:00:40]} 52. Bf6 {[%clk 0:00:24.5]} 52... Ne8
{[%clk 0:00:40.5]} 53. Be5 {[%clk 0:00:24.5]} 53... Bc1 {[%clk 0:00:40.3]} 54.
Ne7+ {[%clk 0:00:22.7]} 54... Kf8 {[%clk 0:00:40.7]} 55. Nc6 {[%clk 0:00:23.7]}
55... Ba3 {[%clk 0:00:40.3]} 56. Bb5 {[%clk 0:00:24.3]} 56... Nd6 {[%clk
0:00:40.8]} 57. Bxd6+ {[%clk 0:00:19.8]} 57... Bxd6 {[%clk 0:00:42]} 58. Ke3
{[%clk 0:00:21.3]} 58... Ba3 {[%clk 0:00:42.4]} 59. Ne5 {[%clk 0:00:20.2]} 59...
Bc1+ {[%clk 0:00:43.4]} 60. Kf3 {[%clk 0:00:20.7]} 60... Bb2 {[%clk 0:00:45]}
61. Nc6 {[%clk 0:00:19.7]} 61... Bc1 {[%clk 0:00:42.9]} 62. Kg4 {[%clk
0:00:18.2]} 62... Bd2 {[%clk 0:00:43.6]} 63. Kf3 {[%clk 0:00:19]} 63... Bc1
{[%clk 0:00:45.1]} 64. Bd3 {[%clk 0:00:19.9]} 64... Bd2 {[%clk 0:00:45.8]} 65.
Kg4 {[%clk 0:00:21.2]} 65... Be3 {[%clk 0:00:45.9]} 66. Bb5 {[%clk 0:00:20.8]}
66... Bc1 {[%clk 0:00:46]} 67. Ne5 {[%clk 0:00:21.5]} 67... Bb2 {[%clk
0:00:43.1]} 68. Nf3 {[%clk 0:00:22.6]} 68... Bc1 {[%clk 0:00:42.8]} 69. Bd3
{[%clk 0:00:23.3]} 69... Be3 {[%clk 0:00:43.1]} 70. Kg3 {[%clk 0:00:22.3]} 70...
Kg7 {[%clk 0:00:43.6]} 71. Kg4 {[%clk 0:00:21.6]} 71... Kf8 {[%clk 0:00:44.4]}
72. Bb5 {[%clk 0:00:22.3]} 72... Kg8 {[%clk 0:00:43.2]} 73. Ba4 {[%clk
0:00:23.6]} 73... Kg7 {[%clk 0:00:41.6]} 74. Bc2 {[%clk 0:00:25.5]} 74... Kh7
{[%clk 0:00:40.3]} 75. Bd3 {[%clk 0:00:26.5]} 75... Kh8 {[%clk 0:00:40.9]} 76.
Ne5 {[%clk 0:00:27.1]} 76... Kg7 {[%clk 0:00:38.2]} 77. Nc6 {[%clk 0:00:28.2]}
77... Bc1 {[%clk 0:00:39.7]} 78. Kf3 {[%clk 0:00:28.7]} 78... Kf8 {[%clk
0:00:40.6]} 79. Bb5 {[%clk 0:00:24.4]} 79... Bd2 {[%clk 0:00:40.4]} 80. Ba4
{[%clk 0:00:23]} 80... Bc1 {[%clk 0:00:41.5]} 81. Nb4 {[%clk 0:00:23.4]} 81...
Bb2 {[%clk 0:00:39.5]} 82. Nc2 {[%clk 0:00:25.3]} 82... Bc1 {[%clk 0:00:39.1]}
83. Bb5 {[%clk 0:00:25.3]} 83... Bd2 {[%clk 0:00:39.9]} 84. Kg4 {[%clk
0:00:22.6]} 84... Bc1 {[%clk 0:00:40.2]} 85. Kg3 {[%clk 0:00:23.5]} 85... Bd2
{[%clk 0:00:40.8]} 86. Bd3 {[%clk 0:00:24.5]} 86... Bc1 {[%clk 0:00:41.8]} 87.
Kf3 {[%clk 0:00:24.7]} 87... Ke7 {[%clk 0:00:42.6]} 88. Nb4 {[%clk 0:00:18.9]}
88... Kf8 {[%clk 0:00:43.2]} 89. Na2 {[%clk 0:00:20]} 89... Bd2 {[%clk
0:00:42.6]} 90. Be2 {[%clk 0:00:19.4]} 90... Ke7 {[%clk 0:00:43.4]} 91. Bb5
{[%clk 0:00:19]} 91... Kd6 {[%clk 0:00:44.2]} 92. Be8 {[%clk 0:00:18.4]} 92...
Ke7 {[%clk 0:00:45.4]} 93. Ba4 {[%clk 0:00:19.5]} 93... f6 {[%clk 0:00:43.1]}
94. gxf6+ {[%clk 0:00:19.9]} 94... Kxf6 {[%clk 0:00:44.5]} 95. Be8 {[%clk
0:00:18.4]} 95... g5 {[%clk 0:00:44]} 96. fxg5+ {[%clk 0:00:19.8]} 96... Kxg5
{[%clk 0:00:44.9]} 97. Bd7 {[%clk 0:00:19.6]} 97... Kf6 {[%clk 0:00:45]} 98. Ke2
{[%clk 0:00:20.2]} 98... Ba5 {[%clk 0:00:45.2]} 99. Kd3 {[%clk 0:00:20.5]} 99...
e5 {[%clk 0:00:45.2]} 100. dxe5+ {[%clk 0:00:19.6]} 100... Kxe5 {[%clk
0:00:46.6]} 101. Bc6 {[%clk 0:00:20.3]} 1/2-1/2

[Event "*** Titled Tuesday Blitz AM"]
[Site "Chess.com"]
[Date "2020.01.07"]
[Round "3"]
[White "pedroholly22"]
[Black "Colombiano07"]
[Result "1/2-1/2"]
[WhiteElo "2384"]
[BlackElo "2165"]
[TimeControl "180+2"]
[EndTime "9:43:45 PST"]
[Termination "Game drawn by 50-move rule"]

1. e4 {[%clk 0:02:56.9]} 1... c5 {[%clk 0:03:00.1]} 2. Nf3 {[%clk 0:02:57.5]}
2... Nc6 {[%clk 0:03:01.1]} 3. d4 {[%clk 0:02:59.4]} 3... cxd4 {[%clk
0:03:02.1]} 4. Nxd4 {[%clk 0:02:59.1]} 4... Nf6 {[%clk 0:03:03.7]} 5. Nc3 {[%clk
0:02:59.7]} 5... g6 {[%clk 0:03:05.3]} 6. Be3 {[%clk 0:02:57.8]} 6... Bg7 {[%clk
0:03:05.7]} 7. Bc4 {[%clk 0:02:59.4]} 7... O-O {[%clk 0:03:06.9]} 8. Bb3 {[%clk
0:03:00.1]} 8... a5 {[%clk 0:03:07.7]} 9. O-O {[%clk 0:03:00.2]} 9... a4 {[%clk
0:03:09.1]} 10. Nxa4 {[%clk 0:02:59.8]} 10... Nxe4 {[%clk 0:03:10.3]} 11. Nb5
{[%clk 0:02:57.2]} 11... Ra6 {[%clk 0:03:11.5]} 12. Qe2 {[%clk 0:02:50.9]} 12...
d6 {[%clk 0:03:08.8]} 13. c4 {[%clk 0:02:51]} 13... Bd7 {[%clk 0:02:53.5]} 14.
Bb6 {[%clk 0:02:42.7]} 14... Rxb6 {[%clk 0:02:51.1]} 15. Nxb6 {[%clk 0:02:44.6]}
15... Qxb6 {[%clk 0:02:51.8]} 16. Qxe4 {[%clk 0:02:44.9]} 16... Bxb2 {[%clk
0:02:53.4]} 17. Rad1 {[%clk 0:02:43.7]} 17... Bg7 {[%clk 0:02:49.1]} 18. Qe2
{[%clk 0:02:34.8]} 18... Ne5 {[%clk 0:02:48.6]} 19. h3 {[%clk 0:02:10.7]} 19...
Rc8 {[%clk 0:02:34.1]} 20. Kh1 {[%clk 0:02:00.2]} 20... Be6 {[%clk 0:02:33.9]}
21. Nd4 {[%clk 0:01:54.6]} 21... Bxc4 {[%clk 0:02:29.6]} 22. Bxc4 {[%clk
0:01:54.7]} 22... Rxc4 {[%clk 0:02:30.5]} 23. Nf3 {[%clk 0:01:50.6]} 23... Qc6
{[%clk 0:02:21]} 24. Nxe5 {[%clk 0:01:45.2]} 24... Bxe5 {[%clk 0:02:22.9]} 25.
Qd3 {[%clk 0:01:33.1]} 25... Rc3 {[%clk 0:02:20.5]} 26. Qd5 {[%clk 0:01:33.3]}
26... Qxd5 {[%clk 0:02:14]} 27. Rxd5 {[%clk 0:01:35.2]} 27... Rc2 {[%clk
0:02:15.5]} 28. a4 {[%clk 0:01:29.4]} 28... Ra2 {[%clk 0:02:16.2]} 29. f4 {[%clk
0:01:23.4]} 29... Bf6 {[%clk 0:02:11.4]} 30. a5 {[%clk 0:01:18.8]} 30... Bc3
{[%clk 0:02:09.5]} 31. Rb1 {[%clk 0:01:18.9]} 31... Bxa5 {[%clk 0:01:19.6]} 32.
Rxb7 {[%clk 0:01:06.9]} 32... Bd2 {[%clk 0:01:20.2]} 33. g3 {[%clk 0:00:56.7]}
33... Kf8 {[%clk 0:01:16.1]} 34. Rb8+ {[%clk 0:00:56.3]} 34... Kg7 {[%clk
0:01:17.2]} 35. Rb7 {[%clk 0:00:53.3]} 35... Kf6 {[%clk 0:01:18.3]} 36. Rd4
{[%clk 0:00:53.8]} 36... Bc3 {[%clk 0:00:56.8]} 37. Rd3 {[%clk 0:00:52.2]} 37...
Be1 {[%clk 0:00:51.4]} 38. g4 {[%clk 0:00:53]} 38... Ra4 {[%clk 0:00:43.2]} 39.
g5+ {[%clk 0:00:53.2]} 39... Kg7 {[%clk 0:00:28.6]} 40. Rxe7 {[%clk 0:00:52.9]}
40... Bh4 {[%clk 0:00:16.8]} 41. Rf3 {[%clk 0:00:47.9]} 41... Ra2 {[%clk
0:00:16.4]} 42. Rd7 {[%clk 0:00:46.5]} 42... Rd2 {[%clk 0:00:16.3]} 43. f5
{[%clk 0:00:47.2]} 43... gxf5 {[%clk 0:00:17.3]} 44. Rxf5 {[%clk 0:00:48.5]}
44... Kg6 {[%clk 0:00:18]} 45. Rfxf7 {[%clk 0:00:48.6]} 45... Bxg5 {[%clk
0:00:18.6]} 46. Rxh7 {[%clk 0:00:48.9]} 46... Bf4 {[%clk 0:00:19.5]} 47. Rhg7+
{[%clk 0:00:49]} 47... Kf5 {[%clk 0:00:20.3]} 48. Rg4 {[%clk 0:00:49.8]} 48...
Be5 {[%clk 0:00:19.8]} 49. Rf7+ {[%clk 0:00:50]} 49... Ke6 {[%clk 0:00:20.8]}
50. Rf1 {[%clk 0:00:49]} 50... Rh2+ {[%clk 0:00:21.3]} 51. Kg1 {[%clk 0:00:50]}
51... Rxh3 {[%clk 0:00:23.2]} 52. Kg2 {[%clk 0:00:51.3]} 52... Ra3 {[%clk
0:00:23.6]} 53. Rf2 {[%clk 0:00:52]} 53... Rb3 {[%clk 0:00:23.5]} 54. Rf3 {[%clk
0:00:51.2]} 54... Rb2+ {[%clk 0:00:24.4]} 55. Kf1 {[%clk 0:00:51.4]} 55... Kd5
{[%clk 0:00:24.3]} 56. Rf2 {[%clk 0:00:51.8]} 56... Rb1+ {[%clk 0:00:24.3]} 57.
Kg2 {[%clk 0:00:52.7]} 57... Rb3 {[%clk 0:00:26.2]} 58. Rg8 {[%clk 0:00:52.6]}
58... Ra3 {[%clk 0:00:26.6]} 59. Rd2+ {[%clk 0:00:53.6]} 59... Ke4 {[%clk
0:00:27.2]} 60. Rg4+ {[%clk 0:00:52.6]} 60... Kf5 {[%clk 0:00:27.1]} 61. Rc4
{[%clk 0:00:53.1]} 61... Rg3+ {[%clk 0:00:27.3]} 62. Kf1 {[%clk 0:00:54]} 62...
Rh3 {[%clk 0:00:27.6]} 63. Ke2 {[%clk 0:00:54.7]} 63... Ke6 {[%clk 0:00:26.9]}
64. Kd1 {[%clk 0:00:55.4]} 64... Kf5 {[%clk 0:00:26.5]} 65. Kc2 {[%clk
0:00:55.8]} 65... Ke6 {[%clk 0:00:28]} 66. Rc8 {[%clk 0:00:56]} 66... Kf5 {[%clk
0:00:29]} 67. Rd3 {[%clk 0:00:56.2]} 67... Rh2+ {[%clk 0:00:28.9]} 68. Kd1
{[%clk 0:00:57.2]} 68... Ke4 {[%clk 0:00:29.2]} 69. Rd2 {[%clk 0:00:58.1]} 69...
Rh1+ {[%clk 0:00:30.2]} 70. Kc2 {[%clk 0:00:58.6]} 70... Rh3 {[%clk 0:00:30.1]}
71. Rc4+ {[%clk 0:00:58.5]} 71... Kf5 {[%clk 0:00:29.2]} 72. Rd3 {[%clk
0:00:59.8]} 72... Rh2+ {[%clk 0:00:29.7]} 73. Kd1 {[%clk 0:01:00.7]} 73... Rg2
{[%clk 0:00:29.3]} 74. Rc2 {[%clk 0:01:00.3]} 74... Rg1+ {[%clk 0:00:30]} 75.
Ke2 {[%clk 0:01:01]} 75... Rg2+ {[%clk 0:00:30.6]} 76. Kd1 {[%clk 0:01:02]}
76... Rg1+ {[%clk 0:00:32]} 77. Kd2 {[%clk 0:01:01.6]} 77... Bf4+ {[%clk
0:00:33]} 78. Kc3 {[%clk 0:01:01.6]} 78... Be5+ {[%clk 0:00:34.4]} 79. Kc4
{[%clk 0:01:01.7]} 79... Rg4+ {[%clk 0:00:34.9]} 80. Kd5 {[%clk 0:01:01.7]}
80... Ra4 {[%clk 0:00:35.2]} 81. Rf2+ {[%clk 0:01:01.5]} 81... Kg4 {[%clk
0:00:36.1]} 82. Rf8 {[%clk 0:01:01.3]} 82... Ra5+ {[%clk 0:00:36.5]} 83. Ke6
{[%clk 0:01:01.9]} 83... Ra4 {[%clk 0:00:35.4]} 84. Rd1 {[%clk 0:01:02.5]} 84...
Ra3 {[%clk 0:00:31.8]} 85. Rg1+ {[%clk 0:01:02.7]} 85... Rg3 {[%clk 0:00:32.7]}
86. Rg8+ {[%clk 0:01:01.1]} 86... Kf3 {[%clk 0:00:33.9]} 87. R1xg3+ {[%clk
0:01:01.7]} 87... Bxg3 {[%clk 0:00:34.8]} 88. Kd5 {[%clk 0:01:02.4]} 88... Be5
{[%clk 0:00:35.7]} 89. Rf8+ {[%clk 0:01:02.6]} 89... Ke3 {[%clk 0:00:35.3]} 90.
Ra8 {[%clk 0:01:03.4]} 90... Kf4 {[%clk 0:00:34.3]} 91. Ra3 {[%clk 0:01:03.8]}
91... Kf5 {[%clk 0:00:34.9]} 92. Rf3+ {[%clk 0:01:04.3]} 92... Bf4 {[%clk
0:00:35.3]} 93. Kd4 {[%clk 0:01:04.8]} 93... Kg5 {[%clk 0:00:34.6]} 94. Ke4
{[%clk 0:01:05.1]} 94... Be5 {[%clk 0:00:35.8]} 95. Rf8 {[%clk 0:01:05.3]} 95...
Kg6 {[%clk 0:00:36.3]} 96. Kd5 {[%clk 0:01:03.7]} 96... Kg5 {[%clk 0:00:33]} 97.
Rf3 {[%clk 0:01:01.2]} 97... Kg4 {[%clk 0:00:33.4]} 98. Ke4 {[%clk 0:01:02.2]}
98... Kg5 {[%clk 0:00:29.8]} 99. Rf8 {[%clk 0:01:01.8]} 99... Kg6 {[%clk
0:00:30.9]} 100. Rg8+ {[%clk 0:01:01.9]} 100... Kf7 {[%clk 0:00:32]} 101. Rg1
{[%clk 0:01:03.1]} 101... Kf6 {[%clk 0:00:32.4]} 102. Kd5 {[%clk 0:01:03.5]}
102... Kf5 {[%clk 0:00:32.7]} 103. Rf1+ {[%clk 0:01:04.9]} 103... Kg6 {[%clk
0:00:33.7]} 104. Ke6 {[%clk 0:01:06]} 104... Kg5 {[%clk 0:00:35.2]} 105. Kd5
{[%clk 0:01:06]} 105... Kg6 {[%clk 0:00:36.1]} 106. Ke4 {[%clk 0:01:07.4]}
106... Kg5 {[%clk 0:00:36.9]} 107. Rf5+ {[%clk 0:01:07.8]} 107... Kg6 {[%clk
0:00:37.6]} 108. Rf8 {[%clk 0:01:06.7]} 108... Kg7 {[%clk 0:00:38.4]} 109. Ra8
{[%clk 0:01:03.8]} 109... Kf6 {[%clk 0:00:39.4]} 110. Rc8 {[%clk 0:01:02.4]}
110... Ke6 {[%clk 0:00:40.9]} 111. Rg8 {[%clk 0:01:02.5]} 111... Kf7 {[%clk
0:00:39.8]} 112. Rg1 {[%clk 0:01:02.2]} 112... Kf6 {[%clk 0:00:41.1]} 113. Rh1
{[%clk 0:01:03]} 113... Kg6 {[%clk 0:00:42.2]} 114. Kf3 {[%clk 0:01:03.5]}
114... Kf5 {[%clk 0:00:43.3]} 115. Rh5+ {[%clk 0:01:03.8]} 115... Ke6 {[%clk
0:00:44.6]} 116. Kg4 {[%clk 0:01:04.9]} 116... Kf6 {[%clk 0:00:46.3]} 117. Rh7
{[%clk 0:01:05.8]} 117... Ke6 {[%clk 0:00:47.4]} 118. Rh6+ {[%clk 0:01:06.1]}
118... Kd5 {[%clk 0:00:48.8]} 119. Kf5 {[%clk 0:01:07.3]} 119... Kc5 {[%clk
0:00:50]} 120. Rh3 {[%clk 0:01:08.4]} 120... Kd5 {[%clk 0:00:51.3]} 121. Rd3+
{[%clk 0:01:08.6]} 121... Kc4 {[%clk 0:00:52.7]} 122. Ke4 {[%clk 0:01:09.5]}
122... Kc5 {[%clk 0:00:53.3]} 123. Rd1 {[%clk 0:01:09]} 123... Kc6 {[%clk
0:00:54.1]} 124. Rc1+ {[%clk 0:01:09.6]} 124... Kd7 {[%clk 0:00:55.5]} 125. Kd5
{[%clk 0:01:11]} 125... Ke7 {[%clk 0:00:57]} 126. Rf1 {[%clk 0:01:11.8]} 126...
Kd7 {[%clk 0:00:52.4]} 127. Rf7+ {[%clk 0:01:12.2]} 127... Ke8 {[%clk
0:00:53.7]} 128. Ke6 {[%clk 0:01:13.2]} 128... Kd8 {[%clk 0:00:49.8]} 129. Rd7+
{[%clk 0:01:11]} 129... Kc8 {[%clk 0:00:49.5]} 130. Rh7 {[%clk 0:01:08]} 130...
Kd8 {[%clk 0:00:49.9]} 131. Kd5 {[%clk 0:01:02.7]} 131... Ke8 {[%clk 0:00:37.8]}
132. Rc7 {[%clk 0:00:58.8]} 132... Kd8 {[%clk 0:00:34.2]} 133. Kc6 {[%clk
0:00:58.7]} 133... Ke8 {[%clk 0:00:34.6]} 134. Rd7 {[%clk 0:00:58.6]} 134... Kf8
{[%clk 0:00:30.5]} 135. Kd5 {[%clk 0:00:59]} 135... Ke8 {[%clk 0:00:29.9]} 136.
Ke6 {[%clk 0:00:59.8]} 136... Kf8 {[%clk 0:00:31.2]} 137. Re7 {[%clk 0:01:01]}
137... Kg8 {[%clk 0:00:31.3]} 1/2-1/2

[Event "*** Titled Tuesday Blitz AM"]
[Site "Chess.com"]
[Date "2020.01.07"]
[Round "4"]
[White "BocharovD"]
[Black "Zq1"]
[Result "1-0"]
[WhiteElo "2762"]
[BlackElo "2574"]
[TimeControl "180+2"]
[EndTime "9:47:07 PST"]
[Termination "BocharovD won by resignation"]

1. Nf3 {[%clk 0:02:54.8]} 1... d5 {[%clk 0:03:00.1]} 2. e3 {[%clk 0:02:54.9]}
2... Nf6 {[%clk 0:02:57.9]} 3. c4 {[%clk 0:02:55.2]} 3... e6 {[%clk 0:02:58.4]}
4. b3 {[%clk 0:02:56.1]} 4... Be7 {[%clk 0:02:58.5]} 5. Bb2 {[%clk 0:02:56.7]}
5... O-O {[%clk 0:02:59.4]} 6. Nc3 {[%clk 0:02:57.1]} 6... c5 {[%clk 0:02:57]}
7. cxd5 {[%clk 0:02:57.1]} 7... Nxd5 {[%clk 0:02:56.3]} 8. Nxd5 {[%clk
0:02:56.5]} 8... exd5 {[%clk 0:02:56.2]} 9. d4 {[%clk 0:02:57]} 9... cxd4 {[%clk
0:02:56.7]} 10. Qxd4 {[%clk 0:02:53.2]} 10... Bf6 {[%clk 0:02:53.7]} 11. Qd2
{[%clk 0:02:54.1]} 11... Bxb2 {[%clk 0:02:30.2]} 12. Qxb2 {[%clk 0:02:54.3]}
12... Qa5+ {[%clk 0:02:30.8]} 13. Qd2 {[%clk 0:02:54.8]} 13... Qxd2+ {[%clk
0:02:31.4]} 14. Kxd2 {[%clk 0:02:55.4]} 14... Nc6 {[%clk 0:02:30.9]} 15. Bb5
{[%clk 0:02:55.6]} 15... Bg4 {[%clk 0:02:28.6]} 16. Bxc6 {[%clk 0:02:53.3]}
16... Bxf3 {[%clk 0:02:22.5]} 17. Bxb7 {[%clk 0:02:53.9]} 17... Bxg2 {[%clk
0:02:21.6]} 18. Bxa8 {[%clk 0:02:51.3]} 18... Bxh1 {[%clk 0:02:22.2]} 19. Rxh1
{[%clk 0:02:51.4]} 19... Rxa8 {[%clk 0:02:22.9]} 20. Rc1 {[%clk 0:02:53]} 20...
a5 {[%clk 0:02:17.8]} 21. Rc5 {[%clk 0:02:52.6]} 21... a4 {[%clk 0:02:17.4]} 22.
b4 {[%clk 0:02:53.3]} 22... a3 {[%clk 0:02:11.9]} 23. Ra5 {[%clk 0:02:52.2]}
23... Rd8 {[%clk 0:02:08.9]} 24. Rxa3 {[%clk 0:02:51.1]} 24... d4 {[%clk
0:02:08.6]} 25. exd4 {[%clk 0:02:51.4]} 25... g6 {[%clk 0:02:05.6]} 26. Kd3
{[%clk 0:02:52.1]} 1-0

[Event "*** Titled Tuesday Blitz AM"]
[Site "Chess.com"]
[Date "2020.01.07"]
[Round "4"]
[White "arminmusovic"]
[Black "Everyfishknows"]
[Result "1-0"]
[WhiteElo "2506"]
[BlackElo "2328"]
[TimeControl "180+2"]
[EndTime "9:47:24 PST"]
[Termination "arminmusovic won by checkmate"]

1. e4 {[%clk 0:03:01.9]} 1... e5 {[%clk 0:03:00.6]} 2. Nf3 {[%clk 0:03:01.9]}
2... Nc6 {[%clk 0:03:01.7]} 3. Nc3 {[%clk 0:03:03]} 3... Nf6 {[%clk 0:03:02.3]}
4. Bb5 {[%clk 0:03:00.9]} 4... Bb4 {[%clk 0:03:02.5]} 5. O-O {[%clk 0:02:58.9]}
5... O-O {[%clk 0:03:01.6]} 6. d3 {[%clk 0:02:59.5]} 6... d6 {[%clk 0:03:02.5]}
7. Bg5 {[%clk 0:03:00.4]} 7... Bxc3 {[%clk 0:03:02.7]} 8. bxc3 {[%clk 0:03:01]}
8... Qe7 {[%clk 0:03:04.6]} 9. Bxc6 {[%clk 0:02:58.6]} 9... bxc6 {[%clk
0:03:05.2]} 10. h3 {[%clk 0:02:59.2]} 10... h6 {[%clk 0:03:05.8]} 11. Bh4 {[%clk
0:03:00.6]} 11... Be6 {[%clk 0:03:02.3]} 12. Qc1 {[%clk 0:02:51.4]} 12... c5
{[%clk 0:02:58.1]} 13. d4 {[%clk 0:02:50.8]} 13... cxd4 {[%clk 0:02:56.7]} 14.
cxd4 {[%clk 0:02:52.7]} 14... exd4 {[%clk 0:02:56]} 15. Re1 {[%clk 0:02:52.1]}
15... Bd7 {[%clk 0:02:54.9]} 16. e5 {[%clk 0:02:52]} 16... dxe5 {[%clk
0:02:55.5]} 17. Nxe5 {[%clk 0:02:53.1]} 17... Qd6 {[%clk 0:02:54.3]} 18. Bxf6
{[%clk 0:02:51.4]} 18... gxf6 {[%clk 0:02:54.2]} 19. Nxd7 {[%clk 0:02:51.8]}
19... Qxd7 {[%clk 0:02:54.5]} 20. Qxh6 {[%clk 0:02:53.3]} 20... Qf5 {[%clk
0:02:51.5]} 21. Rad1 {[%clk 0:02:46.9]} 21... Qg6 {[%clk 0:02:50.6]} 22. Qh4
{[%clk 0:02:43.1]} 22... Kg7 {[%clk 0:02:44.6]} 23. Rxd4 {[%clk 0:02:38.7]}
23... f5 {[%clk 0:02:42.8]} 24. Re3 {[%clk 0:02:30.1]} 24... Rh8 {[%clk
0:02:39.6]} 25. Qf4 {[%clk 0:02:31]} 25... Kf8 {[%clk 0:02:34.1]} 26. Qxc7
{[%clk 0:02:25.6]} 26... Qb6 {[%clk 0:02:24.4]} 27. Qe7+ {[%clk 0:02:25.2]}
27... Kg7 {[%clk 0:02:18.5]} 28. Rg3+ {[%clk 0:02:26.1]} 28... Kh6 {[%clk
0:02:18.2]} 29. Rh4# {[%clk 0:02:26.6]} 1-0

[Event "*** Titled Tuesday Blitz AM"]
[Site "Chess.com"]
[Date "2020.01.07"]
[Round "4"]
[White "SHIVACalypso"]
[Black "muran29"]
[Result "0-1"]
[WhiteElo "2271"]
[BlackElo "2494"]
[TimeControl "180+2"]
[EndTime "9:47:30 PST"]
[Termination "muran29 won by resignation"]

1. Nf3 {[%clk 0:03:01.9]} 1... d5 {[%clk 0:02:59.2]} 2. c4 {[%clk 0:03:03]} 2...
e6 {[%clk 0:03:00.4]} 3. g3 {[%clk 0:03:03.4]} 3... Nf6 {[%clk 0:03:01]} 4. Bg2
{[%clk 0:03:04.9]} 4... c5 {[%clk 0:03:02.1]} 5. cxd5 {[%clk 0:03:04.6]} 5...
exd5 {[%clk 0:03:03.1]} 6. O-O {[%clk 0:03:06.5]} 6... Nc6 {[%clk 0:03:04.5]} 7.
d4 {[%clk 0:03:07.9]} 7... Be7 {[%clk 0:03:05.6]} 8. Nc3 {[%clk 0:03:08]} 8...
O-O {[%clk 0:03:06.8]} 9. dxc5 {[%clk 0:03:09.4]} 9... Bxc5 {[%clk 0:03:07.7]}
10. a3 {[%clk 0:03:10.2]} 10... a5 {[%clk 0:03:07.9]} 11. Bg5 {[%clk 0:03:06]}
11... d4 {[%clk 0:03:08.8]} 12. Ne4 {[%clk 0:03:03.9]} 12... Be7 {[%clk
0:03:09.9]} 13. Nxf6+ {[%clk 0:03:00.7]} 13... Bxf6 {[%clk 0:03:11.8]} 14. Bxf6
{[%clk 0:03:01.2]} 14... Qxf6 {[%clk 0:03:13.7]} 15. Qd2 {[%clk 0:02:59.7]}
15... Bg4 {[%clk 0:03:08]} 16. Rfd1 {[%clk 0:02:58]} 16... Rad8 {[%clk 0:03:05]}
17. Rac1 {[%clk 0:02:56.3]} 17... Rfe8 {[%clk 0:03:05.4]} 18. Rc4 {[%clk
0:02:55]} 18... Be6 {[%clk 0:03:01.2]} 19. Rc5 {[%clk 0:02:44.5]} 19... Bb3
{[%clk 0:03:01.6]} 20. Rdc1 {[%clk 0:02:41.9]} 20... a4 {[%clk 0:03:03.1]} 21.
Bf1 {[%clk 0:02:38]} 21... d3 {[%clk 0:03:03.2]} 22. Re1 {[%clk 0:02:03]} 22...
dxe2 {[%clk 0:03:02]} 23. Rxe2 {[%clk 0:02:04]} 23... Qxf3 {[%clk 0:03:00.3]}
24. Qd7 {[%clk 0:01:35.4]} 24... Rxe2 {[%clk 0:02:57.1]} 25. Rxc6 {[%clk
0:01:33]} 25... Qxf2+ {[%clk 0:02:57.8]} 0-1